bitfinex/quotes_SOLUSD_20220118
["timestamp","ask_amount","ask_price","bid_price","bid_amount"]
[1642487920966,3.03219997,140.39,140.38,3.03219997]
[1642487921368,3.03219997,140.39,140.36,23.1657]
[1642487922569,3.03219997,140.39,140.37,3.03219997]
[1642487922969,3.03219997,140.39,140.36,23.1657]
[1642487923276,3.03219997,140.39,140.36,33.8499]
[1642487923874,3.03219997,140.39,140.37,3.03219997]
[1642487925973,3.03219997,140.39,140.36,33.8499]
[1642487926372,3.03219997,140.39,140.37,3.03219997]
[1642487926579,0.09,140.4,140.37,3.03219997]
[1642487928475,0.09,140.4,140.36,33.8499]
[1642487931780,0.09,140.4,140.37,0.25]
[1642487931981,0.09,140.4,140.38,3.03219997]
[1642487941500,3.12219997,140.4,140.38,3.03219997]
[1642487941999,3.12219997,140.4,140.37,0.25]
[1642487943813,3.12219997,140.4,140.38,3.03219997]
[1642487944203,3.12219997,140.4,140.36,32.0147]
[1642487944404,0.25,140.39,140.36,2.849]
[1642487945229,7.769,140.39,140.36,2.849]
[1642487945430,46.10379297,140.37,140.36,2.849]
[1642487947131,46.10379297,140.37,140.32,4.86599268]
[1642487947330,46.10379297,140.37,140.33,0.25]
[1642487947530,0.09,140.4,140.33,0.25]
[1642487947834,26.8557828,140.4,140.33,23.8362]
[1642487948230,26.8557828,140.4,140.33,31.85319268]
[1642487948430,24.8256,140.4,140.34,39.73322019]
[1642487948832,24.8256,140.4,140.35,0.25]
[1642487950534,24.8256,140.4,140.35,10.9348]
[1642487950733,24.8256,140.4,140.35,16.9348]
[1642487953639,24.8256,140.4,140.35,10.9348]
[1642487953839,24.8256,140.4,140.34,2.849]
[1642487954040,0.25,140.39,140.33,34.2723]
[1642487960576,0.25,140.39,140.33,23.5862]
[1642487960978,7.683,140.39,140.32,2.849]
[1642487961187,10.532,140.39,140.32,2.849]
[1642487962481,10.532,140.39,140.3,2.849]
[1642487962678,21.2212,140.39,140.3,3.099]
[1642487962878,93.0212,140.39,140.3,9.099]
[1642487963078,21.2212,140.39,140.3,9.099]
[1642487963278,21.2212,140.39,140.31,23.8701]
[1642487963679,21.2212,140.39,140.32,0.25]
[1642487963879,93.0212,140.39,140.32,0.25]
[1642487964078,21.2212,140.39,140.32,0.25]
[1642487964879,10.532,140.39,140.32,0.25]
[1642487966079,74.899,140.39,140.32,0.25]
[1642487966680,3.099,140.39,140.32,0.25]
[1642487966881,3.099,140.39,140.31,29.8701]
[1642487967180,3.099,140.39,140.3,2.849]
[1642487967181,13.329,140.39,140.3,2.849]
[1642487967380,15.11805272,140.39,140.28,2.01699268]
[1642487967582,71.8,140.38,140.27,2.01699268]
[1642487967779,37.6586,140.37,140.27,2.01699268]
[1642487967981,42.58212875,140.34,140.27,2.01699268]
[1642487968180,2.85,140.33,140.27,2.01699268]
[1642487968379,0.25,140.33,140.27,2.01699268]
[1642487968781,0.25,140.33,140.27,6.0]
[1642487968982,0.25,140.33,140.26,24.2327]
[1642487969682,0.25,140.33,140.26,47.9249]
[1642487970185,29.8559,140.34,140.26,47.9249]
[1642487970384,29.8559,140.34,140.27,0.25]
[1642487970585,23.0269,140.34,140.27,0.25]
[1642487971686,23.0269,140.34,140.28,2.85]
[1642487973189,23.0269,140.34,140.27,3.1]
[1642487973488,30.4449,140.34,140.27,3.1]
[1642487975791,30.4449,140.34,140.27,9.1]
[1642487976889,30.4449,140.34,140.27,3.1]
[1642487977091,0.25,140.33,140.26,26.5422]
[1642487977290,3.101,140.33,140.26,23.6922]
[1642487978390,0.25,140.33,140.26,23.6922]
[1642487979995,10.9438,140.33,140.26,23.6922]
[1642487980395,82.7438,140.33,140.26,23.6922]
[1642487980796,2.851,140.32,140.23,2.01699268]
[1642487980995,10.697,140.3,140.23,2.01699268]
[1642487981197,40.709535,140.28,140.23,2.01699268]
[1642487981396,3.101,140.27,140.23,2.01699268]
[1642487981596,11.62,140.27,140.2,2.01699268]
[1642487982297,35.9389,140.27,140.2,2.01699268]
[1642487982697,35.9389,140.27,140.19,74.70185193]
[1642487983498,35.9389,140.27,140.19,76.71884461]
[1642487984899,35.9389,140.27,140.21,2.01699268]
[1642487986003,33.0879,140.27,140.21,2.01699268]
[1642487988102,33.0879,140.27,140.19,74.70185193]
[1642487990805,8.519,140.27,140.2,0.25]
[1642487991003,23.689,140.29,140.21,10.6953]
[1642487991204,2.852,140.32,140.21,11.92572769]
[1642487991411,32.8059,140.33,140.22,26.24142769]
[1642487991806,32.8059,140.33,140.23,1.23042769]
[1642487992004,32.8059,140.33,140.24,37.02675011]
[1642487992204,32.8059,140.33,140.24,37.27675011]
[1642487992406,0.25,140.32,140.24,37.27675011]
[1642487993708,0.25,140.32,140.25,2.851]
[1642487996115,3.101,140.32,140.24,66.00684279]
[1642487996914,27.4671,140.32,140.24,76.70014279]
[1642487997440,24.6161,140.32,140.24,76.70014279]
[1642487997641,24.3661,140.32,140.24,76.70014279]
[1642487998543,24.3661,140.32,140.24,76.45014279]
[1642487998842,0.25,140.31,140.24,76.45014279]
[1642488002650,24.3661,140.32,140.24,76.45014279]
[1642488002947,24.3661,140.32,140.25,0.25]
[1642488003146,24.3661,140.32,140.26,2.851]
[1642488003547,2.0301828,140.33,140.27,0.25]
[1642488004347,36.93784867,140.34,140.27,0.25]
[1642488005250,2.0301828,140.34,140.27,0.25]
[1642488005454,2.0301828,140.34,140.27,10.9411]
[1642488006955,2.0301828,140.34,140.27,0.25]
[1642488007553,2.0301828,140.34,140.27,24.2802]
[1642488008355,71.78840566,140.35,140.27,24.2802]
[1642488008556,0.25,140.34,140.27,24.0302]
[1642488009159,2.2801828,140.34,140.27,24.0302]
[1642488009659,15.8230828,140.34,140.27,24.0302]
[1642488010360,15.8230828,140.34,140.25,4.86699268]
[1642488010560,24.878,140.33,140.25,27.77489268]
[1642488010860,0.25,140.32,140.25,27.77489268]
[1642488011261,0.25,140.32,140.26,0.25]
[1642488014164,24.878,140.33,140.26,10.9418]
[1642488014365,2.0301828,140.34,140.26,13.7928]
[1642488014562,2.0301828,140.34,140.27,24.733]
[1642488014762,0.25,140.33,140.27,24.733]
[1642488017393,2.0301828,140.34,140.28,0.25]
[1642488017593,2.0301828,140.34,140.27,24.733]
[1642488017791,3.1,140.33,140.27,24.733]
[1642488017993,13.7938,140.33,140.25,2.01699268]
[1642488018192,22.8217,140.32,140.25,2.01699268]
[1642488018393,3.101,140.31,140.25,2.01699268]
[1642488018994,39.53510785,140.3,140.25,2.01699268]
[1642488019198,74.651,140.29,140.25,0.32569878]
[1642488019395,83.414,140.29,140.22,0.32569878]
[1642488019596,47.67694472,140.27,140.22,0.32569878]
[1642488019799,0.25,140.26,140.22,0.32569878]
[1642488020396,0.25,140.26,140.19,29.54660354]
[1642488020600,0.25,140.26,140.19,25.558]
[1642488022498,0.25,140.26,140.19,26.79137124]
[1642488022899,0.25,140.26,140.19,25.558]
[1642488024101,0.25,140.26,140.19,22.707]
[1642488025607,0.25,140.26,140.2,42.31774216]
[1642488026408,0.25,140.26,140.2,43.5511134]
[1642488026606,0.25,140.26,140.2,42.31774216]
[1642488027106,0.25,140.26,140.2,43.5511134]
[1642488027407,0.25,140.26,140.2,42.31774216]
[1642488027607,0.25,140.26,140.2,53.01414216]
[1642488027809,0.25,140.26,140.2,54.2475134]
[1642488028106,0.25,140.26,140.2,53.01414216]
[1642488028508,0.25,140.26,140.2,54.2475134]
[1642488028707,0.25,140.26,140.2,53.01414216]
[1642488028907,0.25,140.27,140.2,53.01414216]
[1642488029108,10.6995,140.26,140.18,2.852]
[1642488029311,10.6995,140.26,140.17,3.98860354]
[1642488029312,0.25,140.25,140.17,3.98860354]
[1642488029508,13.082,140.24,140.17,3.98860354]
[1642488029708,84.882,140.24,140.17,3.98860354]
[1642488029913,0.25,140.23,140.17,3.98860354]
[1642488030112,13.554,140.22,140.17,3.98860354]
[1642488030410,0.25,140.21,140.16,37.06728419]
[1642488030812,2.853,140.2,140.16,37.06728419]
[1642488031112,10.23,140.23,140.16,37.06728419]
[1642488031313,0.25,140.22,140.16,37.06728419]
[1642488031711,0.25,140.22,140.18,10.6973]
[1642488032014,0.25,140.22,140.19,43.72635004]
[1642488032614,0.25,140.24,140.2,3.03219997]
[1642488037321,3.102,140.24,140.2,3.03219997]
[1642488037524,3.102,140.24,140.16,2.852]
[1642488037723,24.1476,140.23,140.16,2.852]
[1642488037924,2.853,140.22,140.16,2.852]
[1642488038124,3.103,140.22,140.16,2.852]
[1642488038323,13.8035,140.22,140.16,2.852]
[1642488038524,13.8035,140.22,140.16,51.2306715]
[1642488039328,13.8035,140.22,140.16,48.3786715]
[1642488041725,2.853,140.22,140.16,48.3786715]
[1642488041926,2.853,140.24,140.17,0.25]
[1642488042130,10.23,140.25,140.18,2.852]
[1642488042552,10.23,140.25,140.19,44.87718197]
[1642488042852,20.9282,140.25,140.19,44.87718197]
[1642488043058,0.25,140.24,140.19,44.87718197]
[1642488043252,0.25,140.24,140.18,2.852]
[1642488043457,2.852,140.23,140.17,22.8699]
[1642488043663,2.852,140.23,140.13,2.852]
[1642488043854,0.25,140.22,140.14,24.025]
[1642488044054,0.25,140.22,140.15,2.853]
[1642488044253,0.25,140.22,140.16,44.71219254]
[1642488044454,10.6998,140.23,140.16,44.96219254]
[1642488044657,10.6998,140.23,140.17,2.853]
[1642488045956,0.25,140.22,140.17,2.853]
[1642488048357,10.6998,140.23,140.17,2.853]
[1642488049761,10.6998,140.23,140.16,71.80579254]
[1642488050159,0.25,140.22,140.16,71.80579254]
[1642488050562,2.853,140.24,140.17,0.25]
[1642488050760,20.9287,140.25,140.17,0.25]
[1642488050961,0.25,140.24,140.16,71.80579254]
[1642488051161,0.25,140.24,140.17,0.25]
[1642488051561,0.25,140.24,140.17,10.698]
[1642488052264,47.6344,140.25,140.18,0.25]
[1642488052462,44.7814,140.25,140.18,0.25]
[1642488053964,44.7814,140.25,140.18,3.102]
[1642488054164,44.7814,140.25,140.19,35.1427408]
[1642488054365,0.25,140.24,140.19,35.1427408]
[1642488054766,50.96246466,140.24,140.19,35.1427408]
[1642488055465,50.96246466,140.24,140.18,2.852]
[1642488055665,2.852,140.23,140.18,2.852]
[1642488055865,0.25,140.22,140.18,2.852]
[1642488056265,10.9506,140.22,140.18,2.852]
[1642488057067,10.9506,140.22,140.16,63.88083954]
[1642488060470,0.25,140.22,140.16,63.88083954]
[1642488062473,10.9506,140.22,140.16,63.88083954]
[1642488063672,13.8036,140.22,140.16,63.88083954]
[1642488064772,10.9506,140.22,140.16,63.88083954]
[1642488081091,13.5547,140.21,140.16,63.88083954]
[1642488081294,0.25,140.2,140.16,63.88083954]
[1642488081491,0.25,140.2,140.16,23.8089]
[1642488083294,10.7017,140.21,140.16,23.8089]
[1642488084320,85.92947421,140.23,140.16,23.8089]
[1642488084724,0.25,140.22,140.16,23.8089]
[1642488085525,10.7005,140.22,140.16,23.8089]
[1642488088226,10.9513,140.21,140.16,23.8089]
[1642488095262,10.7013,140.21,140.16,23.8089]
[1642488097763,10.7013,140.21,140.17,3.103]
[1642488100167,10.7013,140.21,140.17,0.25]
[1642488103774,10.7013,140.21,140.16,26.6619]
[1642488103973,10.7013,140.21,140.16,23.8089]
[1642488115281,10.7005,140.22,140.16,23.8089]
[1642488115883,72.12617421,140.23,140.16,23.8089]
[1642488116084,0.25,140.22,140.16,26.6619]
[1642488116282,0.25,140.22,140.16,37.3614]
[1642488117787,0.25,140.22,140.16,26.6619]
[1642488118586,3.103,140.22,140.16,23.8089]
[1642488118787,13.8036,140.22,140.16,23.8089]
[1642488119889,10.9506,140.22,140.16,26.6619]
[1642488120689,47.51867472,140.21,140.16,26.6619]
[1642488121588,10.9506,140.22,140.16,26.6619]
[1642488121991,0.25,140.22,140.16,26.6619]
[1642488122592,36.10466458,140.22,140.16,26.6619]
[1642488124793,36.10466458,140.22,140.16,32.6619]
[1642488126094,25.42602691,140.25,140.17,0.25]
[1642488126294,4.49722691,140.25,140.18,2.852]
[1642488126494,1.64422691,140.25,140.18,27.0287]
[1642488126695,1.64422691,140.25,140.19,0.25]
[1642488126894,1.64422691,140.25,140.2,2.852]
[1642488127096,1.64422691,140.25,140.2,44.96295815]
[1642488127296,1.64422691,140.25,140.2,48.23395815]
[1642488127897,1.64422691,140.25,140.2,58.92995815]
[1642488128503,1.64422691,140.25,140.21,0.25]
[1642488129224,1.64422691,140.25,140.2,42.11095815]
[1642488130424,2.852,140.26,140.2,54.03581683]
[1642488130625,39.06383113,140.27,140.21,0.25]
[1642488131526,39.06383113,140.27,140.21,10.9455]
[1642488132026,39.06383113,140.27,140.21,33.5445]
[1642488134530,13.548,140.29,140.21,33.5445]
[1642488134730,0.25,140.27,140.21,33.5445]
[1642488135833,38.61711596,140.28,140.21,33.5445]
[1642488138734,49.31331596,140.28,140.21,33.5445]
[1642488139334,49.31331596,140.28,140.21,33.2945]
[1642488139535,49.31331596,140.28,140.21,22.599]
[1642488140038,2.01593968,140.26,140.21,22.599]
[1642488141143,2.01593968,140.26,140.21,33.2947]
[1642488142438,2.01593968,140.26,140.21,22.599]
[1642488143039,43.59183732,140.25,140.21,22.599]
[1642488144539,2.01593968,140.26,140.21,22.599]
[1642488146343,2.01593968,140.26,140.22,39.93704054]
[1642488147145,2.01593968,140.26,140.21,33.2946]
[1642488147347,2.01593968,140.26,140.22,0.25]
[1642488148146,2.01593968,140.26,140.21,33.2946]
[1642488148547,64.44516664,140.27,140.21,33.2946]
[1642488150251,64.44516664,140.27,140.22,0.25]
[1642488151755,64.44516664,140.27,140.21,36.1466]
[1642488153055,26.88053968,140.27,140.21,36.1466]
[1642488154258,26.88053968,140.27,140.22,0.25]
[1642488154460,2.01593968,140.27,140.22,0.25]
[1642488154658,2.01593968,140.27,140.23,10.6935]
[1642488154862,2.01593968,140.27,140.24,0.25]
[1642488155082,5.27132556,140.3,140.24,3.101]
[1642488155083,2.01593968,140.28,140.24,3.101]
[1642488155283,2.01593968,140.28,140.25,42.45901294]
[1642488156085,2.01593968,140.29,140.25,42.45901294]
[1642488157185,2.01593968,140.29,140.26,72.05]
[1642488157486,3.968e-05,140.29,140.27,3.03219997]
[1642488157688,4.02406946,140.33,140.28,13.5395]
[1642488157885,4.02406946,140.33,140.28,13.7895]
[1642488158086,4.02406946,140.33,140.29,36.68009835]
[1642488158287,6.0522331,140.36,140.3,74.9]
[1642488158487,6.0522331,140.36,140.3,86.35855868]
[1642488158687,0.09,140.4,140.3,103.30605868]
[1642488158992,0.09,140.4,140.32,71.8]
[1642488159188,0.09,140.4,140.33,2.849]
[1642488159389,0.09,140.4,140.34,71.8]
[1642488159589,0.09,140.4,140.36,39.30723541]
[1642488159788,0.09,140.4,140.37,0.25]
[1642488159990,0.09,140.4,140.38,3.03219997]
[1642488160391,0.09,140.4,140.39,0.25]
[1642488160589,0.09,140.4,140.39,6.995]
[1642488160790,0.09,140.4,140.39,6.745]
[1642488160989,0.09,140.4,140.39,46.72484787]
[1642488161690,0.09,140.4,140.39,57.40604787]
[1642488161993,0.09,140.4,140.39,57.65604787]
[1642488163892,0.09,140.4,140.39,57.40604787]
[1642488164291,0.09,140.4,140.39,57.65604787]
[1642488172098,0.09,140.4,140.39,60.50504787]
[1642488174999,0.09,140.4,140.39,57.65604787]
[1642488175801,0.09,140.4,140.39,129.45604787]
[1642488176699,0.09,140.4,140.39,57.65604787]
[1642488179909,0.09,140.4,140.39,50.91104787]
[1642488180314,0.09,140.4,140.39,50.66104787]
[1642488180717,0.09,140.4,140.39,50.91104787]
[1642488181535,0.09,140.4,140.39,53.76004787]
[1642488181736,0.09,140.4,140.39,50.91104787]
[1642488184843,0.09,140.4,140.39,122.71104787]
[1642488185844,0.09,140.4,140.39,50.91104787]
[1642488202296,0.09,140.4,140.39,128.71104787]
[1642488202499,2.849,140.48,140.39,128.71104787]
[1642488202500,2.849,140.48,140.39,139.20104787]
[1642488202798,26.3684,140.49,140.42,10.6783]
[1642488203300,26.3684,140.49,140.43,0.25]
[1642488203897,26.3684,140.49,140.44,42.73037868]
[1642488204098,1.35798694,140.5,140.44,42.73037868]
[1642488204298,1.35798694,140.5,140.45,0.25]
[1642488205605,1.35798694,140.5,140.45,10.9273]
[1642488205806,1.35798694,140.5,140.45,10.6773]
[1642488210913,2.847,140.52,140.46,10.9264]
[1642488211112,2.847,140.54,140.47,71.8]
[1642488211332,26.4739633,140.55,140.48,0.25]
[1642488211734,26.4739633,140.55,140.49,10.6739]
[1642488211933,26.4739633,140.55,140.5,39.31353836]
[1642488212132,26.4739633,140.55,140.5,39.56353836]
[1642488215036,26.4739633,140.55,140.5,50.23703836]
[1642488215635,26.4739633,140.55,140.5,49.98703836]
[1642488216535,1.6474633,140.55,140.5,49.98703836]
[1642488216737,1.6474633,140.55,140.51,0.25]
[1642488216938,2.846,140.59,140.52,10.6717]
[1642488217136,26.75877284,140.6,140.52,13.5167]
[1642488217437,23.91377284,140.6,140.53,0.25]
[1642488217638,2.845,140.63,140.54,71.8]
[1642488217838,12.98515346,140.64,140.55,47.85794295]
[1642488218036,48.3377,140.65,140.56,71.8]
[1642488218037,4.05548317,140.59,140.56,71.8]
[1642488218237,4.05548317,140.59,140.57,3.03219997]
[1642488218438,4.05548317,140.59,140.57,3.28219997]
[1642488219341,4.05548317,140.64,140.57,3.28219997]
[1642488219542,4.05548317,140.64,140.58,10.6664]
[1642488220243,4.05548317,140.64,140.58,82.4664]
[1642488220644,4.05548317,140.64,140.58,10.6664]
[1642488220846,0.25,140.63,140.58,10.6664]
[1642488222248,2.844,140.63,140.58,10.6664]
[1642488223550,2.844,140.63,140.57,10.9182]
[1642488223750,0.25,140.62,140.57,10.6682]
[1642488224849,2.844,140.64,140.57,10.6682]
[1642488224850,0.25,140.63,140.57,10.6682]
[1642488226352,4.05458641,140.62,140.57,10.6682]
[1642488227655,38.19031714,140.61,140.57,10.6682]
[1642488228358,4.05458641,140.62,140.57,10.6682]
[1642488229159,4.05458641,140.63,140.57,10.6682]
[1642488230188,0.25,140.62,140.57,10.6682]
[1642488231088,0.25,140.62,140.55,80.80294295]
[1642488231290,3.095,140.62,140.55,77.95894295]
[1642488231488,3.095,140.62,140.56,0.25]
[1642488231688,0.25,140.62,140.56,0.25]
[1642488232588,0.25,140.62,140.56,10.9184]
[1642488242794,0.25,140.62,140.56,10.6684]
[1642488242994,0.25,140.62,140.55,67.28974295]
[1642488243396,0.25,140.63,140.55,67.28974295]
[1642488243596,2.845,140.62,140.55,67.28974295]
[1642488243803,40.23113102,140.61,140.55,67.28974295]
[1642488244196,0.25,140.61,140.55,67.28974295]
[1642488244397,4.30511378,140.61,140.55,67.28974295]
[1642488245201,0.25,140.61,140.55,67.28974295]
[1642488246807,10.6703,140.63,140.55,67.28974295]
[1642488247006,4.05517588,140.6,140.56,2.845]
[1642488247608,4.05517588,140.6,140.57,0.25]
[1642488247808,4.05517588,140.62,140.57,0.25]
[1642488248909,4.05465153,140.62,140.57,0.25]
[1642488249110,4.05465153,140.62,140.56,13.5139]
[1642488249511,4.05465153,140.62,140.56,2.845]
[1642488249910,0.25,140.61,140.56,2.845]
[1642488252914,0.25,140.61,140.55,70.13474295]
[1642488253214,4.05465153,140.62,140.56,10.6689]
[1642488253414,4.05465153,140.62,140.56,10.9189]
[1642488253614,4.05465153,140.61,140.56,10.9189]
[1642488254015,4.05465153,140.61,140.56,10.6689]
[1642488254417,4.05465153,140.62,140.56,10.6689]
[1642488254817,0.25,140.61,140.56,10.6689]
[1642488257050,4.05465153,140.62,140.56,10.6689]
[1642488259555,4.05465153,140.62,140.57,0.25]
[1642488259752,4.05465153,140.62,140.56,10.6689]
[1642488260154,4.05465153,140.62,140.57,0.25]
[1642488260556,4.05465153,140.62,140.57,3.095]
[1642488261257,0.25,140.61,140.57,2.845]
[1642488261457,0.25,140.61,140.56,13.5139]
[1642488261658,0.25,140.61,140.56,10.6689]
[1642488263959,0.25,140.61,140.56,13.5139]
[1642488264159,4.05465153,140.62,140.56,13.5139]
[1642488265464,0.25,140.61,140.56,2.845]
[1642488267062,0.25,140.61,140.55,77.95954295]
[1642488267262,0.25,140.61,140.56,0.25]
[1642488267762,0.25,140.61,140.53,2.845]
[1642488267967,3.095,140.61,140.53,26.7024]
[1642488268164,3.095,140.61,140.51,23.3104]
[1642488268366,24.0306,140.6,140.51,23.3104]
[1642488268569,2.845,140.59,140.51,23.3104]
[1642488268766,43.28916514,140.59,140.52,43.07809559]
[1642488269567,53.96266514,140.59,140.52,43.07809559]
[1642488272670,53.96266514,140.59,140.51,23.3104]
[1642488272869,60.34866514,140.59,140.51,23.3104]
[1642488273071,60.34866514,140.59,140.5,13.5184]
[1642488273869,60.34866514,140.59,140.5,2.845]
[1642488274070,132.14866514,140.59,140.5,2.845]
[1642488274470,33.1786,140.58,140.49,24.4762]
[1642488274672,10.6761,140.56,140.47,2.846]
[1642488274872,26.981,140.55,140.47,2.846]
[1642488275173,42.44596392,140.54,140.47,8.846]
[1642488275372,0.25,140.53,140.47,8.846]
[1642488275772,42.44596392,140.54,140.47,8.846]
[1642488276573,42.44596392,140.54,140.47,13.5219]
[1642488276773,0.25,140.53,140.47,2.846]
[1642488276976,8.24,140.53,140.46,25.4672]
[1642488277174,11.087,140.53,140.46,22.6212]
[1642488277374,11.087,140.53,140.44,2.847]
[1642488277774,21.765,140.53,140.44,2.847]
[1642488277972,21.765,140.53,140.42,40.21113392]
[1642488278177,46.7519,140.53,140.42,8.847]
[1642488278373,46.7519,140.53,140.4,27.8281]
[1642488278573,46.7519,140.53,140.4,33.8281]
[1642488279173,46.7519,140.53,140.41,37.35474609]
[1642488279373,46.7519,140.53,140.42,2.847]
[1642488279673,56.9819,140.53,140.42,3.097]
[1642488279876,2.018464,140.52,140.42,3.097]
[1642488280077,13.5266,140.51,140.42,3.097]
[1642488280274,13.7766,140.51,140.42,3.097]
[1642488280474,3.097,140.51,140.42,13.7766]
[1642488280877,3.097,140.51,140.42,85.5766]
[1642488281174,13.7766,140.51,140.42,13.5266]
[1642488281375,13.7766,140.51,140.42,2.847]
[1642488282376,13.7766,140.51,140.42,13.5265]
[1642488283204,10.9296,140.51,140.42,13.5265]
[1642488284101,17.2436,140.51,140.42,2.847]
[1642488284902,17.2436,140.51,140.41,2.847]
[1642488285201,2.847,140.5,140.4,24.9811]
[1642488285401,0.25,140.49,140.4,24.9811]
[1642488285701,10.6828,140.47,140.4,24.9811]
[1642488285902,40.54682389,140.46,140.39,46.06492254]
[1642488286904,0.25,140.46,140.39,46.06492254]
[1642488287603,0.25,140.46,140.39,56.74672254]
[1642488288405,0.25,140.46,140.4,0.25]
[1642488288604,0.25,140.46,140.41,2.848]
[1642488288906,0.25,140.48,140.41,2.848]
[1642488289304,0.25,140.49,140.41,2.848]
[1642488290006,25.4755,140.5,140.41,13.5282]
[1642488290211,0.25,140.49,140.41,85.3282]
[1642488290607,0.25,140.49,140.42,0.25]
[1642488291509,0.25,140.49,140.43,10.6782]
[1642488291708,0.25,140.49,140.41,2.848]
[1642488293009,49.33763247,140.48,140.4,23.0554]
[1642488293408,0.25,140.47,140.4,23.0554]
[1642488300217,0.25,140.47,140.4,33.7363]
[1642488300416,38.65523247,140.48,140.4,33.7363]
[1642488300619,0.25,140.47,140.41,2.848]
[1642488302120,0.25,140.47,140.4,25.9034]
[1642488302820,10.9325,140.47,140.4,25.9034]
[1642488304123,2.848,140.46,140.4,2.848]
[1642488304321,10.9352,140.45,140.4,2.848]
[1642488304521,2.848,140.44,140.4,2.848]
[1642488304921,0.25,140.43,140.4,2.848]
[1642488305121,3.03219997,140.42,140.4,2.848]
[1642488307325,0.25,140.41,140.4,2.848]
[1642488307530,0.25,140.41,140.37,22.7517]
[1642488308232,0.25,140.43,140.37,22.7517]
[1642488308633,45.65235018,140.44,140.37,22.7517]
[1642488308832,0.25,140.43,140.38,0.25]
[1642488309033,0.25,140.43,140.38,2.848]
[1642488309234,0.25,140.43,140.4,0.55493975]
[1642488309437,0.25,140.43,140.42,0.55493975]
[1642488310134,3.28219997,140.43,140.42,0.55493975]
[1642488310337,3.03219997,140.43,140.42,49.96794705]
[1642488310936,2.018464,140.47,140.42,49.96794705]
[1642488312238,24.970464,140.49,140.42,49.96794705]
[1642488312642,0.25,140.48,140.42,49.96794705]
[1642488314046,0.25,140.49,140.42,63.49444705]
[1642488314646,0.25,140.49,140.46,0.55493975]
[1642488314846,0.25,140.49,140.48,0.55493975]
[1642488315050,3.28219997,140.49,140.48,0.55493975]
[1642488319766,13.96319997,140.49,140.48,0.00493975]
[1642488319965,20.54519997,140.49,140.48,0.0098795]
[1642488320165,22.33425269,140.49,140.48,0.0098795]
[1642488320366,32.56425269,140.49,140.48,0.0098795]
[1642488320765,32.79366397,140.49,140.48,0.0098795]
[1642488321966,30.77519997,140.49,140.48,0.0098795]
[1642488322168,48.75429997,140.49,140.48,0.0098795]
[1642488324575,56.86012539,140.49,140.48,0.0098795]
[1642488324977,56.61012539,140.49,140.41,41.52295515]
[1642488325179,98.55693149,140.49,140.41,41.52295515]
[1642488325782,90.45110607,140.49,140.41,41.52295515]
[1642488326685,2.02908571,140.47,140.41,41.52295515]
[1642488326885,0.25,140.46,140.41,41.52295515]
[1642488328387,2.27908571,140.46,140.41,41.52295515]
[1642488328589,12.96228571,140.46,140.41,41.52295515]
[1642488329892,12.96228571,140.46,140.38,23.799]
[1642488330896,12.96228571,140.46,140.39,35.71072229]
[1642488331996,15.81028571,140.46,140.39,35.71072229]
[1642488333494,2.02908571,140.45,140.39,35.71072229]
[1642488333696,10.6847,140.44,140.39,35.71072229]
[1642488333897,10.9347,140.44,140.39,35.71072229]
[1642488334297,0.25,140.44,140.39,35.71072229]
[1642488335321,0.25,140.45,140.39,35.71072229]
[1642488336220,4.87708571,140.46,140.39,35.71072229]
[1642488336421,2.02908571,140.46,140.39,35.71072229]